bitfinex-derivatives/quotes_SOLF0:USTF0_20250202
["timestamp","ask_amount","ask_price","bid_price","bid_amount"]
[1738520775901,11.273,203.81,203.72,4.9118]
[1738520776105,6.3633,203.81,203.7,34.51689623]
[1738520776494,6.3633,203.81,203.66,34.17071218]
[1738520776698,34.17071218,203.76,203.57,34.17071218]
[1738520776905,34.17071218,203.72,203.53,34.17071218]
[1738520777799,34.17071218,203.72,203.49,35.35726096]
[1738520778205,0.03682212,203.63,203.58,0.0351601]
[1738520778503,0.03682212,203.63,203.45,34.17071218]
[1738520778805,4.9172,203.5,203.41,4.9192]
[1738520779000,34.17071218,203.56,203.39,34.17071218]
[1738520779193,34.17071218,203.6,203.39,34.17071218]
[1738520779397,3.094,203.62,203.49,34.17071218]
[1738520779398,0.90346369,203.59,203.49,34.17071218]
[1738520779599,0.90346369,203.58,203.53,34.17071218]
[1738520779801,6.2501,203.67,203.53,34.17071218]
[1738520780101,7.828e-05,203.56,203.54,4.916]
[1738520780298,0.9030768,203.66,203.52,0.03259403]
[1738520780495,3.094,203.71,203.6,4.9147]
[1738520780693,3.094,203.71,203.59,34.17071218]
[1738520780694,0.90291435,203.7,203.59,34.17071218]
[1738520781204,0.90291435,203.74,203.59,34.17071218]
[1738520781400,0.90291435,203.73,203.59,34.17071218]
[1738520781602,0.03677438,203.67,203.62,0.0318904]
[1738520781798,0.03677438,203.67,203.63,34.17071218]
[1738520781999,0.03677438,203.67,203.65,4.9135]
[1738520782202,0.03677438,203.67,203.63,34.17071218]
[1738520782502,0.03677438,203.67,203.63,0.03357683]
[1738520784107,0.93955074,203.67,203.63,0.03357683]
[1738520784298,0.03677438,203.67,203.63,0.03357683]
[1738520784502,3.0702,203.66,203.5,131.43071218]
[1738520784705,0.90288613,203.65,203.5,131.43071218]
[1738520784999,0.90288613,203.65,203.46,34.17071218]
[1738520785205,35.07359831,203.64,203.46,34.17071218]
[1738520785405,0.90288613,203.63,203.42,34.17071218]
[1738520785604,4.9166,203.53,203.43,4.9187]
[1738520785802,34.17071218,203.56,203.34,131.43071218]
[1738520786109,4.918,203.47,203.34,102.1809]
[1738520786312,37.07341218,203.52,203.34,97.26]
[1738520786601,0.90374276,203.51,203.29,5.2446]
[1738520786805,34.17071218,203.44,203.28,81.4959269]
[1738520787004,34.17071218,203.4,203.28,81.4959269]
[1738520787301,3.80644276,203.39,203.28,81.4959269]
[1738520787498,0.90374276,203.38,203.28,81.4959269]
[1738520787705,0.90374276,203.37,203.29,4.9221]
[1738520788006,1.87552291,203.59,203.32,0.03449172]
[1738520788310,0.03712445,203.35,203.32,0.03449172]
[1738520788504,0.03712445,203.35,203.29,34.17071218]
[1738520788704,0.90419206,203.46,203.33,34.17071218]
[1738520789004,0.90419206,203.45,203.33,34.17071218]
[1738520789209,0.90419206,203.44,203.37,34.17071218]
[1738520789402,0.98289758,203.48,203.41,34.17071218]
[1738520790209,0.03149681,203.47,203.42,0.03410458]
[1738520790705,0.03149681,203.47,203.44,34.17071218]
[1738520791099,3.1922,203.61,203.42,0.03410458]
[1738520791100,3.1922,203.61,203.48,34.17071218]
[1738520791303,4.9135,203.66,203.52,34.17071218]
[1738520791499,0.90342886,203.65,203.52,34.17071218]
[1738520791807,0.90342886,203.64,203.55,4.9158]
[1738520792108,0.90342886,203.66,203.52,34.17071218]
[1738520792304,0.03419391,203.62,203.57,0.03528321]
[1738520794111,6.0817,203.75,203.57,0.03528321]
[1738520794112,4.9117,203.73,203.6,34.17071218]
[1738520794408,0.90285877,203.72,203.6,34.17071218]
[1738520794604,6.0817,203.75,203.61,4.9145]
[1738520794800,4.9122,203.71,203.6,34.17071218]
[1738520794998,34.17071218,203.84,203.64,34.17071218]
[1738520795205,81.29167425,203.92,203.6,34.17071218]
[1738520795206,34.17071218,203.8,203.6,34.17071218]
[1738520795410,4.9113,203.75,203.63,0.03591554]
[1738520795704,0.9026787,203.74,203.62,4.9141]
[1738520795903,0.9026787,203.74,203.6,34.17071218]
[1738520796107,6.0817,203.79,203.67,0.03352657]
[1738520796108,0.9026787,203.73,203.67,0.03352657]
[1738520796312,0.9026787,203.78,203.67,0.03352657]
[1738520796502,5.8134787,203.77,203.67,0.03352657]
[1738520796705,0.9026787,203.76,203.67,0.03352657]
[1738520797006,0.9026787,203.75,203.67,0.03352657]
[1738520797202,0.9026787,203.78,203.67,0.03352657]
[1738520797407,0.9026787,203.77,203.68,4.9127]
[1738520797706,0.90245185,203.76,203.68,4.9127]
[1738520797913,0.90245185,203.78,203.68,4.9127]
[1738520798107,6.0817,203.79,203.7,0.03192532]
[1738520798409,37.28431218,203.88,203.7,0.03192532]
[1738520798609,7.14058896,203.87,203.7,0.03192532]
[1738520798814,0.90228896,203.86,203.68,34.17071218]
[1738520799008,0.90220086,203.85,203.68,34.17071218]
[1738520799211,0.90220086,203.84,203.76,0.03398025]
[1738520799410,0.90220086,203.83,203.76,0.03398025]
[1738520799707,0.90220086,203.82,203.76,0.03398025]
[1738520800210,5.81200086,203.81,203.76,0.03398025]
[1738520800404,0.90220086,203.8,203.76,0.03398025]
[1738520800811,4.9098,203.81,203.76,0.03398025]
[1738520801011,6.2383,203.87,203.76,0.03398025]
[1738520801209,0.9021707,203.86,203.76,0.03398025]
[1738520801418,0.9021707,203.85,203.76,0.03398025]
[1738520801911,0.90213325,203.84,203.76,34.20469243]
[1738520802110,3.1407,203.93,203.76,34.20469243]
[1738520802312,0.90206577,203.92,203.8,34.17071218]
[1738520802512,0.90206577,203.91,203.8,34.17071218]
[1738520802814,0.90206577,203.93,203.82,0.03120071]
[1738520803009,0.90206577,203.92,203.82,0.03120071]
[1738520803208,34.17071218,203.88,203.68,46.65737721]
[1738520803509,0.90206577,203.87,203.76,34.17071218]
[1738520803711,0.90206577,203.87,203.85,0.03701567]
[1738520803905,0.90206577,203.86,203.72,34.17071218]
[1738520804106,34.17071218,203.92,203.72,34.17071218]
[1738520804107,0.90206577,203.85,203.72,34.17071218]
[1738520804304,34.17071218,203.92,203.84,0.03318008]
[1738520804715,34.17071218,203.88,203.68,34.17071218]
[1738520804912,34.17071218,203.84,203.67,5.2445]
[1738520805113,8.8962,203.83,203.67,5.2445]
[1738520805313,0.90198835,203.82,203.67,5.2445]
[1738520805512,4.9101,203.8,203.73,0.03683436]
[1738520805714,34.17071218,203.88,203.73,0.03683436]
[1738520805914,0.90223049,203.87,203.73,34.20754654]
[1738520806215,0.90223049,203.86,203.73,34.17071218]
[1738520806513,5.892,203.92,203.73,34.17071218]
[1738520806714,0.90199143,203.91,203.78,0.03111098]
[1738520806915,34.17071218,203.89,203.78,0.03111098]
[1738520807112,4.91,203.8,203.78,0.03111098]
[1738520807315,34.17071218,203.85,203.67,5.2445]
[1738520807516,0.90231891,203.84,203.77,0.03137335]
[1738520807711,34.17071218,203.81,203.61,39.41021218]
[1738520808016,9.83691891,203.8,203.61,34.17071218]
[1738520808206,0.90231891,203.79,203.61,34.17071218]
[1738520808617,8.9346,203.8,203.61,34.17071218]
[1738520808813,34.17071218,203.77,203.59,5.2365]
[1738520809019,34.17071218,203.73,203.53,34.17071218]
[1738520809213,0.0324162,203.73,203.68,0.03187791]
[1738520809716,6.0407,203.8,203.65,34.17071218]
[1738520809911,0.9025894,203.79,203.71,34.17071218]
[1738520810119,4.9084,203.87,203.78,4.9104]
[1738520810309,6.0407,203.89,203.75,34.17071218]
[1738520810614,0.90207815,203.88,203.75,34.17071218]
[1738520810813,0.90207815,203.88,203.76,4.9107]
[1738520811016,0.90207815,203.88,203.75,34.17071218]
[1738520811317,0.90207815,203.88,203.71,39.08271218]
[1738520811519,0.90207815,203.88,203.8,0.03569702]
[1738520812218,0.98086541,203.98,203.8,0.03569702]
[1738520812415,9.96714788,203.97,203.8,0.03569702]
[1738520812616,0.90194788,203.96,203.8,0.03569702]
[1738520812813,0.90194788,203.96,203.79,34.17071218]
[1738520813018,2.9251,203.95,203.79,34.17071218]
[1738520813222,0.90194788,203.94,203.86,0.03770736]
[1738520813514,2.9251,203.95,203.86,0.03770736]
[1738520813719,2.9251,203.95,203.88,4.9079]
[1738520813921,5.88666541,203.98,203.86,0.03770736]
[1738520813922,34.17071218,204.09,203.87,34.17071218]
[1738520814122,6.0411,204.04,203.87,34.17071218]
[1738520814317,6.0411,204.04,203.92,4.9069]
[1738520814318,0.90159131,204.03,203.92,4.9069]
[1738520814518,0.90159131,204.03,203.87,34.17071218]
[1738520814924,0.90159131,204.03,203.93,0.03514537]
[1738520814925,4.905,204.01,203.93,0.03514537]
[1738520815225,6.0411,204.04,203.93,0.03514537]
[1738520815516,0.90159558,204.03,203.93,0.03514537]
[1738520815716,4.9055,203.99,203.93,0.03514537]
[1738520816121,34.17071218,204.01,203.93,0.03514537]
[1738520816322,3.0124,203.98,203.83,34.17071218]
[1738520816618,3.0124,203.98,203.87,34.17071218]
[1738520816924,6.0411,204.04,203.91,34.17071218]
[1738520817122,6.0411,204.04,203.95,34.17071218]
[1738520817325,6.0411,204.04,203.97,4.9057]
[1738520817526,0.03111941,204.02,203.97,0.0377302]
[1738520817921,0.03111941,204.02,203.99,4.9053]
[1738520818618,34.17071218,204.21,203.99,34.17071218]
[1738520818822,3.0148,204.19,204.03,34.17071218]
[1738520819018,0.90106366,204.18,204.03,34.17071218]
[1738520819727,0.90106366,204.18,204.07,34.17071218]
[1738520819930,0.90106366,204.17,204.08,0.03622665]
[1738520820117,0.90106366,204.23,204.08,0.03622665]
[1738520820317,4.9012,204.17,204.03,39.07491218]
[1738520820520,0.90106366,204.16,204.13,0.0323538]
[1738520820731,6.1089,204.24,204.13,0.0323538]
[1738520820732,0.90106366,204.23,204.13,0.0323538]
[1738520820925,4.9011,204.17,204.09,4.9028]
[1738520821120,0.90106366,204.16,204.07,34.17071218]
[1738520821325,6.1089,204.24,204.16,0.03605367]
[1738520821628,7.20720551,204.23,204.07,34.17071218]
[1738520821821,0.90080551,204.22,204.18,0.03719146]
[1738520822022,6.3064,204.26,204.18,0.03719146]
[1738520822220,0.90080551,204.21,204.11,34.17071218]
[1738520822426,0.90080551,204.2,204.09,4.9028]
[1738520822626,0.90080551,204.25,204.08,5.2496]
[1738520822829,4.8982,204.29,204.2,4.9002]
[1738520823029,6.2895,204.32,204.17,34.17071218]
[1738520823030,0.90052067,204.28,204.17,34.17071218]
[1738520823230,0.90052067,204.31,204.21,34.17071218]
[1738520823426,0.90031853,204.3,204.17,34.17071218]
[1738520823620,34.17071218,204.3,204.2,0.03586877]
[1738520823825,0.90031853,204.29,204.2,0.03586877]
[1738520824022,0.90044401,204.28,204.2,0.03586877]
[1738520824326,0.90044401,204.27,204.2,0.03586877]
[1738520824532,0.90044401,204.29,204.2,0.03586877]
[1738520824829,0.90044401,204.28,204.2,0.03586877]
[1738520825031,4.8999,204.22,204.2,0.03586877]
[1738520825228,6.2895,204.32,204.2,0.03586877]
[1738520825531,0.90046947,204.31,204.2,0.03586877]
[1738520825731,4.8999,204.22,204.2,0.03586877]
[1738520826230,6.2895,204.32,204.08,5.2496]
[1738520826231,0.90049898,204.21,204.08,5.2496]
[1738520826430,0.90049898,204.25,204.08,5.2496]
[1738520826732,0.90050246,204.24,204.13,34.17071218]
[1738520826928,4.8996,204.23,204.16,4.9012]
[1738520827127,4.8996,204.23,204.13,34.17071218]
[1738520827326,6.2895,204.32,204.13,34.17071218]
[1738520827528,0.03623914,204.2,204.16,0.03493012]
[1738520827827,34.17071218,204.26,204.05,34.17071218]
[1738520828029,0.9004677,204.25,204.07,4.9033]
[1738520828234,0.03168265,204.2,204.16,3.864e-05]
[1738520828426,34.17071218,204.18,204.16,3.864e-05]
[1738520828734,3.9706677,204.17,203.96,97.04]
[1738520828927,34.17071218,204.08,203.89,34.17071218]
[1738520829134,3.8300677,204.07,203.87,1.061]
[1738520829336,34.17071218,204.04,203.87,1.061]
[1738520829631,34.17071218,204.04,203.83,34.17071218]
[1738520829632,3.97163789,204.03,203.83,34.17071218]
[1738520829828,0.03202481,203.98,203.93,7.161e-05]
[1738520830227,4.9065,203.94,203.93,7.161e-05]
[1738520830429,5.80793789,203.94,203.93,7.161e-05]
[1738520830629,0.90143789,203.94,203.79,81.4959269]
[1738520830828,34.17071218,203.87,203.79,67.1189269]
[1738520831032,34.17071218,203.83,203.78,135.87136011]
[1738520831229,4.9099,203.81,203.76,169.83920014]
[1738520831426,0.90143789,203.8,203.76,169.83920014]
[1738520831732,34.17071218,203.83,203.69,4.9124]
[1738520831733,0.90143789,203.79,203.69,4.9124]
[1738520831925,34.17071218,203.83,203.76,0.03391082]
[1738520832130,0.03662807,203.8,203.76,0.03391082]
[1738520832428,34.17071218,203.87,203.73,4.9115]
[1738520832429,0.90248178,203.86,203.73,4.9115]
[1738520832632,34.17071218,203.95,203.74,2.9486]
[1738520832832,0.0314269,203.8,203.76,0.03662501]
[1738520833032,0.9023069,203.94,203.77,34.17071218]
[1738520833333,34.17071218,203.99,203.81,34.17071218]
[1738520833534,4.9063,203.96,203.83,4.909]
[1738520833834,6.65807668,203.84,203.75,6.2024]
[1738520834129,6.65807668,203.84,203.75,11.1133]
[1738520834431,0.03556568,203.82,203.77,0.03625519]
[1738520835526,34.17071218,203.78,203.6,34.17071218]
[1738520835726,34.17071218,203.78,203.56,34.17071218]
[1738520835932,34.17071218,203.86,203.64,34.17071218]
[1738520836236,0.90252563,203.85,203.68,34.17071218]
[1738520836437,40.82878886,203.94,203.72,34.17071218]
[1738520836627,40.82878886,203.94,203.76,34.17071218]
[1738520837027,6.65807668,203.9,203.72,34.17071218]
[1738520837331,6.65807668,203.9,203.81,34.17071218]
[1738520837636,19.97423005,203.91,203.85,34.17071218]
[1738520838038,0.79613005,203.91,203.89,4.9076]
[1738520838330,0.03636681,203.9,203.89,4.9076]
[1738520838731,0.03636681,203.9,203.86,0.03502381]
[1738520839142,0.79613005,203.91,203.86,0.03502381]
[1738520839143,53.26461349,203.93,203.86,0.03502381]
[1738520839341,53.26461349,203.93,203.91,4.9072]
[1738520839540,79.41607972,203.96,203.89,34.17071218]
[1738520839741,34.17071218,204.06,203.89,34.17071218]
[1738520840132,93.12311462,204.14,203.94,34.17071218]
[1738520840336,58.95240244,204.14,203.94,34.17071218]
[1738520840536,0.03157651,204.0,203.95,0.03739402]
[1738520840839,58.95240244,204.14,203.98,34.17071218]
[1738520841041,58.95240244,204.14,204.02,34.17071218]
[1738520841235,53.05900244,204.14,204.06,4.9035]
[1738520841541,3.1717,204.15,204.02,34.17071218]
[1738520841941,0.97952786,204.18,204.02,34.17071218]
[1738520842142,35.15024004,204.18,204.06,0.0343846]
[1738520842737,0.9008053,204.17,204.06,0.0343846]
[1738520843239,34.17071218,204.14,204.06,0.0343846]
[1738520843440,0.9008053,204.13,204.06,0.0343846]
[1738520843838,34.17071218,204.14,204.06,0.0343846]
[1738520843839,4.9032,204.09,204.06,0.0343846]
[1738520844238,4.9034,204.07,203.95,4.9062]
[1738520844446,0.90122674,204.06,203.94,97.12]
[1738520844643,0.90122674,204.08,203.94,97.12]
[1738520844841,0.90122674,204.07,203.98,34.17071218]
[1738520845041,0.90103297,204.11,204.02,34.17071218]
[1738520845242,0.97952786,204.18,204.02,34.17071218]
[1738520845441,0.90090886,204.17,204.02,34.17071218]
[1738520845643,0.0330776,204.09,204.04,0.03383797]
[1738520846342,0.0330776,204.09,203.99,3.0922]
[1738520846543,0.0330776,204.09,204.0,4.9051]
[1738520846847,0.0330776,204.09,204.04,0.03632883]
[1738520847145,0.0330776,204.09,204.07,4.9033]
[1738520847345,0.0330776,204.09,204.04,0.03632883]
[1738520848643,0.0330776,204.09,204.05,4.9038]
[1738520848843,0.0330776,204.09,204.04,0.03632883]
[1738520850141,0.93415067,204.09,204.04,0.03632883]
[1738520850341,0.0330776,204.09,204.04,0.03632883]
[1738520851047,4.9037,204.06,204.04,0.03632883]
[1738520851342,6.3505,204.08,204.04,0.03632883]
[1738520852244,0.0330776,204.09,204.04,0.03632883]
[1738520852946,0.97952786,204.18,204.06,34.17071218]
[1738520853144,34.17071218,204.31,204.1,34.17071218]
[1738520853549,8.86e-06,204.17,204.15,4.9014]
[1738520854843,0.90024008,204.31,204.14,34.20551445]
[1738520855044,79.41607972,204.35,204.21,34.17071218]
[1738520855550,79.41607972,204.35,204.24,4.8992]
[1738520855750,79.41607972,204.35,204.26,0.03294653]
[1738520856152,12.4674,204.41,204.26,0.03294653]
[1738520856345,34.17071218,204.38,204.26,0.03294653]
[1738520856545,0.89996263,204.37,204.21,34.17071218]
[1738520856747,4.8981,204.3,204.19,4.9005]
[1738520856951,34.17071218,204.38,204.3,0.03373752]
[1738520857147,0.90007304,204.37,204.3,0.03373752]
[1738520857354,0.90007304,204.37,204.17,34.17071218]
[1738520857749,0.90007304,204.37,204.31,0.03129201]
[1738520858057,4.8987,204.27,204.16,4.9012]
[1738520858251,34.17071218,204.34,204.16,4.9012]
[1738520858446,0.90036351,204.33,204.15,97.04]
[1738520858647,0.90036351,204.33,204.09,34.17071218]
[1738520858648,34.17071218,204.3,204.09,34.17071218]
[1738520858853,34.17071218,204.26,204.05,34.17071218]
[1738520859048,7.19346351,204.25,204.09,34.17071218]
[1738520859353,0.0342137,204.22,204.17,0.03085525]
[1738520859854,6.2931,204.25,204.09,34.17071218]
[1738520860048,0.03753883,204.22,204.17,0.03586315]
[1738520862053,34.20825101,204.22,204.01,37.29771218]
[1738520862254,4.9013,204.16,204.07,4.9033]
[1738520862448,34.17071218,204.22,204.01,37.29771218]
[1738520862648,34.17071218,204.18,204.01,37.29771218]
[1738520862850,4.9033,204.08,204.0,4.9049]
[1738520863051,34.17071218,204.1,203.93,34.17071218]
[1738520863258,6.2181,204.09,203.89,34.17071218]
[1738520863554,34.20300543,204.06,203.87,3.134]
[1738520863756,34.17071218,204.02,203.83,34.17071218]
[1738520863956,4.64,204.01,203.8,19.95775043]
[1738520864158,34.17071218,203.98,203.82,4.9093]
[1738520864454,0.90180681,203.97,203.8,16.82375043]
[1738520864658,4.64,204.01,203.8,16.82375043]
[1738520864659,4.9083,203.87,203.8,16.82375043]
[1738520864851,2.9624,203.86,203.8,16.82375043]
[1738520865256,6.2181,203.93,203.8,16.82375043]
[1738520865457,0.03706381,203.86,203.81,0.03273186]
[1738520865661,0.03706381,203.86,203.84,4.9088]
[1738520865855,0.03706381,203.86,203.81,0.03273186]
[1738520866954,0.03706381,203.86,203.83,34.17071218]
[1738520867462,0.90178022,204.01,203.83,34.17071218]
[1738520867658,4.9061,203.96,203.85,4.9086]
[1738520867863,8.8106,204.03,203.83,34.17071218]
[1738520868065,0.90172981,204.02,203.87,34.17071218]
[1738520868656,0.03491225,203.97,203.92,0.03475689]
[1738520869253,0.90170491,204.01,203.83,34.17071218]
[1738520869558,0.03501282,203.97,203.92,0.03715041]
[1738520870057,4.9063,203.94,203.92,0.03715041]
[1738520871761,4.9059,203.96,203.92,0.03715041]
[1738520871957,0.03501282,203.97,203.92,0.03715041]
[1738520872556,0.03501282,203.97,203.95,4.9059]
[1738520872760,0.03501282,203.97,203.92,0.03715041]
[1738520873362,4.9058,203.96,203.92,0.03715041]
[1738520873865,0.03501282,203.97,203.92,0.03715041]
[1738520874957,0.03501282,203.97,203.95,4.9058]
[1738520875162,34.17071218,204.1,203.92,0.03715041]
[1738520875357,0.90127427,204.09,203.92,0.03715041]
[1738520875563,0.90127427,204.12,203.95,34.17071218]
[1738520875762,12.1952,204.13,203.96,2.9588]
[1738520876265,4.9021,204.12,203.96,2.9588]
[1738520876458,0.03595572,204.07,204.02,0.03460172]
[1738520876657,0.03595572,204.07,204.03,4.9042]
[1738520876861,0.03595572,204.07,204.02,0.03460172]
[1738520877060,34.17071218,204.18,204.02,0.03460172]
[1738520877459,34.17071218,204.18,203.99,34.17071218]
[1738520877662,4.901,204.17,204.06,4.9034]
[1738520877866,34.17071218,204.18,203.99,34.17071218]
[1738520878366,34.17071218,204.18,204.06,0.03710368]
[1738520879165,34.17071218,204.18,204.06,4.94050368]
[1738520879762,4.9011,204.16,204.07,4.9031]
[1738520880159,12.312,204.21,204.03,34.17071218]
[1738520880558,34.17071218,204.15,204.09,0.03125983]
[1738520880763,34.17071218,204.15,203.99,4.905]
[1738520880963,34.17071218,204.11,203.96,2.9588]
[1738520881161,34.17071218,204.07,203.91,2.9342]
[1738520881367,6.3698,204.06,203.91,2.9342]
[1738520881572,6.3698,204.06,203.94,34.17071218]
[1738520882164,6.3698,204.06,203.91,2.9342]
[1738520882165,6.3698,204.06,203.98,0.03482603]
[1738520882364,0.0321776,204.02,203.98,0.03482603]
[1738520885167,4.905,204.0,203.98,0.03482603]
[1738520885372,0.0321776,204.02,203.98,0.03482603]
[1738520886062,0.0321776,204.02,203.86,131.27071218]
[1738520886271,4.9064,203.94,203.84,4.9086]
[1738520886466,4.9064,203.94,203.82,37.26211218]
[1738520886772,4.906,203.96,203.82,37.26211218]
[1738520887070,38.81071218,204.04,203.82,37.26211218]
[1738520887372,0.90169431,204.03,203.82,37.26211218]
[1738520887572,0.03363138,203.91,203.87,0.03665858]
[1738520888167,0.90169431,203.98,203.78,34.17071218]
[1738520888474,0.03293941,203.91,203.87,0.03547199]
[1738520888674,0.03293941,203.91,203.73,3.1549]
[1738520889266,7.16428575,203.91,203.79,4.9099]
[1738520889470,6.2624,203.91,203.73,3.1549]
[1738520889766,4.908,203.88,203.8,4.9096]
[1738520889967,6.2624,203.91,203.73,3.1549]
[1738520890166,0.03132182,203.84,203.8,0.03675416]
[1738520892164,2.182e-05,203.84,203.82,4.9092]
[1738520893865,2.182e-05,203.84,203.8,4.94625416]
[1738520894071,2.182e-05,203.84,203.8,0.03675416]
[1738520897566,4.9093,203.82,203.8,0.03675416]
[1738520897767,151.69309229,203.81,203.54,43.68432942]
[1738520898073,34.17071218,203.55,203.53,48.15644929]
[1738520898770,34.17071218,203.59,203.5,167.07110297]
[1738520899075,0.03457704,203.56,203.52,0.03673603]
[1738520899483,34.17071218,203.59,203.51,2.8955]
[1738520899774,34.17071218,203.52,203.5,27.00870806]
[1738520899969,38.81071218,203.51,203.42,269.92570038]
[1738520900171,4.92,203.38,203.34,326.55654371]
[1738520900478,34.17071218,203.35,203.29,41.05285781]
[1738520900666,0.98342921,203.37,203.34,0.03281338]
[1738520901576,0.03678159,203.38,203.34,0.03281338]
[1738520901773,34.17071218,203.52,203.34,0.03281338]
[1738520901976,35.15341658,203.52,203.34,0.03281338]
[1738520902170,35.15341658,203.52,203.32,34.17071218]
[1738520903182,0.03445194,203.44,203.41,4.9191]
[1738520903474,0.9827044,203.52,203.4,0.03768272]
[1738520903674,0.9827044,203.52,203.44,4.9183]
[1738520903875,6.71022182,203.55,203.41,1.0]
[1738520904083,177.44449112,203.51,203.41,1.0]
[1738520904781,0.03347398,203.48,203.47,4.9177]
[1738520904980,177.44449112,203.51,203.44,0.03691195]
[1738520905283,177.44449112,203.51,203.44,4.95531195]
[1738520905480,177.44449112,203.51,203.44,0.03691195]
[1738520905680,177.44449112,203.5,203.44,0.03691195]
[1738520905871,177.44449112,203.5,203.4,23.66065398]
[1738520906880,177.44449112,203.5,203.44,34.17071218]
[1738520906881,55.9644823,203.49,203.44,34.17071218]
[1738520907182,2.804e-05,203.47,203.44,4.78460601]
[1738520907388,2.804e-05,203.47,203.43,0.03436088]
[1738520908683,2.804e-05,203.47,203.32,34.17071218]
[1738520908987,2.804e-05,203.47,203.3,11.0836]
[1738520909183,162.55872643,203.48,203.3,6.1618]
[1738520910090,0.0318939,203.41,203.37,0.0360755]
[1738520911194,81.28642953,203.48,203.37,0.0360755]
[1738520911392,81.28642953,203.48,203.4,4.9195]
[1738520911687,58.42683195,203.48,203.4,34.17071218]
[1738520911889,4.48561354,203.48,203.44,34.17071218]
[1738520912093,34.17071218,203.64,203.44,34.17071218]
[1738520912390,34.17071218,203.64,203.44,34.20579216]
[1738520912793,34.17071218,203.64,203.44,34.17071218]
[1738520912992,4.64,203.67,203.52,0.03171497]
[1738520913190,34.17071218,203.68,203.57,4.9153]
[1738520913391,7.693,203.7,203.52,34.17071218]
[1738520913593,34.17071218,203.76,203.6,34.17071218]
[1738520913796,4.64,203.79,203.6,34.202001]
[1738520914095,34.17071218,203.8,203.6,34.17071218]
[1738520914294,34.17071218,203.76,203.56,34.17071218]
[1738520914493,34.17071218,203.76,203.67,0.03387649]
[1738520914993,3.053,203.81,203.67,0.03387649]
[1738520915294,34.17071218,203.84,203.67,0.03387649]
[1738520915495,34.17071218,203.84,203.64,34.17071218]
[1738520915687,34.17071218,203.84,203.73,0.03611035]
[1738520917895,34.17071218,203.8,203.62,9.002]
[1738520918092,34.17071218,203.76,203.6,79.27992886]
[1738520918497,4.9123,203.71,203.6,79.27992886]
[1738520918694,4.64,203.74,203.6,79.27992886]
[1738520918995,0.98154691,203.76,203.65,34.17071218]
[1738520919300,0.0347062,203.69,203.65,34.20836913]
[1738520919691,0.0347062,203.69,203.65,0.03765695]
[1738520920096,35.15225909,203.76,203.65,0.03765695]
[1738520920493,4.9115,203.74,203.65,0.03765695]
[1738520920698,35.15225909,203.76,203.65,0.03765695]
[1738520920893,0.98154691,203.76,203.65,0.03765695]
[1738520921897,50.01225909,203.76,203.65,0.03765695]
[1738520922203,34.17071218,203.72,203.65,0.03765695]
[1738520922700,49.03071218,203.72,203.56,79.27992886]
[1738520922899,34.17071218,203.72,203.56,79.27992886]
[1738520923091,3.1509,203.71,203.56,79.27992886]
[1738520923295,3.1509,203.71,203.55,3.0392]
[1738520924100,0.03097517,203.65,203.61,0.03462201]
[1738520928902,4.64,203.88,203.61,34.20533419]
[1738520929106,6.1854,203.79,203.61,0.03462201]
[1738520929303,6.1854,203.79,203.57,34.17071218]
[1738520930106,0.02382783,203.69,203.64,0.03144719]
[1738520930703,4.9135,203.65,203.64,0.03144719]
[1738520930907,0.02382783,203.69,203.64,0.03144719]
[1738520931311,4.9132,203.67,203.64,0.03144719]
[1738520931605,0.02382783,203.69,203.64,0.03144719]
[1738520932506,4.913,203.67,203.64,0.03144719]
[1738520933102,4.9129,203.68,203.64,0.03144719]
[1738520933305,0.02382783,203.69,203.64,0.03144719]
[1738520936103,4.9135,203.65,203.64,0.03144719]
[1738520936314,0.02382783,203.69,203.64,0.03144719]
[1738520937511,4.9129,203.68,203.64,0.03144719]
[1738520937711,0.02382783,203.69,203.64,0.03144719]
[1738520938912,0.02382783,203.69,203.66,4.9132]
[1738520939112,0.02382783,203.69,203.64,0.03144719]
[1738520939510,0.02382783,203.69,203.65,4.9135]
[1738520939911,0.02382783,203.69,203.64,0.03144719]
[1738520941911,4.9135,203.65,203.64,0.03144719]
[1738520943116,0.02382783,203.69,203.64,0.03144719]
[1738520945517,4.913,203.68,203.64,0.03144719]
[1738520945718,0.02382783,203.69,203.64,0.03144719]
[1738520947819,0.02382783,203.69,203.66,4.9132]
[1738520948013,0.02382783,203.69,203.64,0.03144719]
[1738520950011,4.913,203.67,203.64,0.03144719]
[1738520950218,0.02382783,203.69,203.64,0.03144719]
[1738520950619,4.9135,203.65,203.64,0.03144719]
[1738520951821,0.02382783,203.69,203.64,0.03144719]
[1738520953618,0.02382783,203.69,203.66,4.9132]
[1738520954016,0.02382783,203.69,203.64,0.03144719]
[1738520955529,0.98154691,203.76,203.64,0.03144719]
[1738520955725,26.85255883,203.87,203.65,20.84155883]
[1738520956027,20.84155883,203.83,203.66,5.8623]